bitfinex/quotes_BTCUSD_20250212
["timestamp","ask_amount","ask_price","bid_price","bid_amount"]
[1739372069192,0.00122387,95515.0,95514.0,0.50948436]
[1739372069609,0.00022387,95515.0,95514.0,0.49648436]
[1739372069787,0.00122387,95515.0,95514.0,0.51148436]
[1739372070622,0.09295635,95534.0,95518.0,0.209384]
[1739372070835,0.09295635,95534.0,95519.0,0.10250365]
[1739372071042,0.15702,95529.0,95521.0,0.209376]
[1739372071253,0.15702,95529.0,95523.0,0.15703]
[1739372071425,0.157026,95526.0,95524.0,0.00588511]
[1739372071643,0.209356,95532.0,95514.0,0.022]
[1739372071644,0.157036,95520.0,95514.0,0.022]
[1739372071849,0.023,95533.0,95515.0,0.00584467]
[1739372072046,0.157029,95524.0,95516.0,0.209389]
[1739372072245,0.157029,95524.0,95521.0,0.021]
[1739372072444,0.15703,95523.0,95522.0,0.00582238]
[1739372072801,0.157024,95527.0,95522.0,0.00582238]
[1739372073011,0.157024,95527.0,95515.0,0.209389]
[1739372073012,0.210352,95533.0,95526.0,0.157024]
[1739372073218,0.210352,95533.0,95523.0,0.0058192]
[1739372073219,0.001,95533.0,95523.0,0.0058192]
[1739372073425,0.001,95533.0,95532.0,0.157015]
[1739372073698,0.001,95533.0,95532.0,0.16280554]
[1739372074349,0.156995,95545.0,95539.0,0.157003]
[1739372074565,0.3284,95555.0,95532.0,0.08759054]
[1739372074771,0.3284,95555.0,95522.0,0.015]
[1739372074772,0.33981953,95555.0,95540.0,0.00551122]
[1739372074985,0.023,95553.0,95511.0,0.0754]
[1739372075196,0.157026,95525.0,95520.0,0.157035]
[1739372075408,0.157026,95525.0,95522.0,0.007]
[1739372075679,0.00044401,95525.0,95521.0,0.00557373]
[1739372075889,0.00044401,95525.0,95279.0,0.0664]
[1739372075890,0.157028,95524.0,95523.0,0.00556736]
[1739372076127,0.15703,95523.0,95522.0,0.00557055]
[1739372076335,0.157035,95520.0,95514.0,0.157044]
[1739372076758,0.157035,95520.0,95515.0,0.00559284]
[1739372076985,0.157039,95518.0,95515.0,0.00559284]
[1739372077191,0.00044401,95525.0,95515.0,0.00559284]
[1739372077400,0.00044401,95525.0,95511.0,0.01122026]
[1739372077625,0.157043,95515.0,95511.0,0.01122026]
[1739372077829,0.157043,95515.0,95512.0,0.00560239]
[1739372078235,0.157041,95517.0,95510.0,0.15705]
[1739372078448,0.157041,95516.0,95515.0,0.011]
[1739372078806,0.00044401,95525.0,95503.0,0.307062]
[1739372079007,0.00044401,95525.0,95501.0,0.307066]
[1739372079008,0.3284,95524.0,95501.0,0.307066]
[1739372079219,0.157056,95508.0,95501.0,0.307066]
[1739372079424,0.366456,95510.0,95503.0,0.157062]
[1739372079642,0.001,95515.0,95510.0,0.15705]
[1739372080409,0.157036,95520.0,95503.0,0.10250365]
[1739372080613,0.157033,95522.0,95504.0,0.31191865]
[1739372080795,0.157036,95520.0,95514.0,0.157043]
[1739372080988,0.157036,95520.0,95515.0,0.157042]
[1739372081188,0.157034,95521.0,95516.0,0.15704]
[1739372081392,0.157032,95522.0,95516.0,0.15704]
[1739372081608,0.209373,95523.0,95516.0,0.15704]
[1739372081609,0.001,95520.0,95516.0,0.15704]
[1739372081805,0.001,95520.0,95517.0,0.157039]
[1739372082080,0.15703,95523.0,95517.0,0.157039]
[1739372082291,0.157033,95521.0,95518.0,0.00560302]
[1739372082714,0.25587018,95524.0,95521.0,0.157033]
[1739372083133,0.25587018,95524.0,95523.0,0.15703]
[1739372083390,0.001,95524.0,95522.0,0.00559928]
[1739372083664,0.158028,95524.0,95523.0,0.00559609]
[1739372083898,0.157028,95524.0,95523.0,0.00559609]
[1739372084136,0.209371,95524.0,95518.0,0.007]
[1739372084375,0.001,95523.0,95518.0,0.007]
[1739372084607,0.001,95523.0,95519.0,0.157036]
[1739372084851,0.00044401,95525.0,95519.0,0.00560883]
[1739372085094,0.209371,95524.0,95523.0,0.012]
[1739372085346,0.367399,95524.0,95523.0,0.012]
[1739372085586,0.366399,95524.0,95523.0,0.005]
[1739372085786,0.157048,95512.0,95504.0,0.25956465]
[1739372086004,0.157049,95512.0,95494.0,0.15]
[1739372086212,0.00044401,95525.0,95505.0,0.00565138]
[1739372086422,0.00044401,95525.0,95506.0,0.1035506]
[1739372086635,0.15747201,95525.0,95523.0,0.001]
[1739372086840,0.15747201,95525.0,95518.0,0.157038]
[1739372087048,0.001,95523.0,95519.0,0.013]
[1739372087257,0.001,95523.0,95522.0,0.157031]
[1739372087449,0.00044401,95525.0,95511.0,0.10250365]
[1739372087903,0.00044401,95525.0,95522.0,0.157031]
[1739372088320,0.00044401,95525.0,95524.0,0.157028]
[1739372088740,0.00044401,95525.0,95524.0,0.25953165]
[1739372088945,0.00044401,95525.0,95524.0,0.26513194]
[1739372089584,0.00044401,95525.0,95524.0,0.26913194]
[1739372089787,0.00044401,95525.0,95524.0,0.26513194]
[1739372090216,0.00044401,95525.0,95524.0,0.27013194]
[1739372090432,0.00144401,95525.0,95524.0,0.27013194]
[1739372090831,0.00044401,95525.0,95524.0,0.27013194]
[1739372091100,0.00144401,95525.0,95524.0,0.17862829]
[1739372091315,0.00144401,95525.0,95524.0,0.17362829]
[1739372091530,0.00044401,95525.0,95524.0,0.16262829]
[1739372091740,0.00044401,95525.0,95524.0,0.17806897]
[1739372091951,0.00144401,95525.0,95524.0,0.18506897]
[1739372092378,0.00144401,95525.0,95524.0,0.18906897]
[1739372092611,0.00144401,95525.0,95524.0,0.18506897]
[1739372092835,0.00144401,95525.0,95524.0,0.18906897]
[1739372093049,0.00144401,95525.0,95524.0,0.29157262]
[1739372093248,0.00044401,95525.0,95524.0,0.42657262]
[1739372093453,0.00044401,95525.0,95524.0,0.43557262]
[1739372094049,0.00044401,95525.0,95524.0,0.42657262]
[1739372094257,0.00044401,95525.0,95524.0,0.33906897]
[1739372094467,0.00044401,95525.0,95524.0,0.34506897]
[1739372094637,0.00044401,95525.0,95524.0,0.33006897]
[1739372094918,0.00044401,95525.0,95524.0,0.32406897]
[1739372095120,0.00044401,95525.0,95524.0,0.34606897]
[1739372095896,0.00044401,95525.0,95524.0,0.44857262]
[1739372097933,0.00044401,95525.0,95524.0,0.43357262]
[1739372098190,0.00044401,95525.0,95524.0,0.42657262]
[1739372098692,0.00044401,95525.0,95524.0,0.43357262]
[1739372099463,1e-08,95525.0,95524.0,0.52077262]
[1739372099780,0.0938406,95560.0,95537.0,0.01]
[1739372099979,0.0938406,95560.0,95559.0,0.388971]
[1739372100482,0.0938406,95560.0,95559.0,0.49147465]
[1739372101059,0.0938406,95560.0,95559.0,0.156971]
[1739372101269,0.0938406,95560.0,95559.0,0.40947465]
[1739372101526,0.0938406,95560.0,95559.0,0.53607465]
[1739372102018,0.0938406,95560.0,95559.0,0.54307465]
[1739372102260,0.0938406,95560.0,95559.0,0.53607465]
[1739372102518,0.00022387,95563.0,95562.0,0.306966]
[1739372102752,0.00022387,95563.0,95562.0,0.40946965]
[1739372104450,0.00022387,95563.0,95562.0,0.42446965]
[1739372105118,0.00022387,95563.0,95562.0,0.43146965]
[1739372105343,0.00022387,95563.0,95562.0,0.53125432]
[1739372106063,0.00022387,95563.0,95562.0,0.41646965]
[1739372106298,0.00022387,95563.0,95562.0,0.43146965]
[1739372106995,0.00022387,95563.0,95562.0,0.41646965]
[1739372107228,0.00022387,95563.0,95562.0,0.43146965]
[1739372107487,0.00022387,95563.0,95562.0,0.42446965]
[1739372107733,0.00022387,95563.0,95562.0,0.43146965]
[1739372107974,0.00022387,95563.0,95562.0,0.42446965]
[1739372108416,0.00022387,95563.0,95562.0,0.43146965]
[1739372108658,0.00022387,95563.0,95562.0,0.42446965]
[1739372108888,0.00022387,95563.0,95562.0,0.41646965]
[1739372109116,0.00022387,95563.0,95562.0,0.42446965]
[1739372109589,0.00022387,95563.0,95562.0,0.40946965]
[1739372109827,0.00022387,95563.0,95562.0,0.27446965]
[1739372110088,0.00022387,95563.0,95562.0,0.015]
[1739372110547,0.00022387,95563.0,95552.0,0.209308]
[1739372110548,0.156966,95562.0,95534.0,0.209348]
[1739372110786,0.00022387,95563.0,95562.0,0.015]
[1739372111289,0.00022387,95563.0,95562.0,0.022]
[1739372111290,0.28588787,95563.0,95562.0,0.022]
[1739372111523,0.29705223,95563.0,95562.0,0.015]
[1739372111747,0.20468787,95563.0,95562.0,0.015]
[1739372111990,0.00022387,95563.0,95562.0,0.171966]
[1739372112226,0.00022387,95563.0,95562.0,0.25946965]
[1739372112465,0.00022387,95563.0,95562.0,0.27646965]
[1739372112681,0.00022387,95563.0,95562.0,0.2858838]
[1739372112913,0.29044,95584.0,95564.0,0.209283]
[1739372113150,0.0812,95584.0,95563.0,0.209286]
[1739372113388,0.156936,95581.0,95573.0,0.156947]
[1739372113613,0.0938406,95578.0,95571.0,0.15695]
[1739372113895,0.0938406,95578.0,95563.0,0.10250365]
[1739372114123,0.0938406,95578.0,95571.0,0.15695]
[1739372114549,0.0938406,95578.0,95566.0,0.209279]
[1739372114760,0.0938406,95578.0,95567.0,0.209277]
[1739372114949,0.0938406,95578.0,95577.0,0.156941]
[1739372115186,0.0938406,95578.0,95577.0,0.25944465]
[1739372115701,0.15713366,95596.0,95577.0,0.25944465]
[1739372115702,0.00022366,95596.0,95577.0,0.10250365]
[1739372115937,0.00022366,95596.0,95554.0,0.313957]
[1739372115938,0.00034926,95596.0,95595.0,0.156911]
[1739372117125,0.00034926,95596.0,95595.0,0.25941465]
[1739372117325,0.00034926,95596.0,95595.0,0.156911]
[1739372117631,0.00034926,95596.0,95577.0,0.005]
[1739372117832,0.00034926,95596.0,95578.0,0.10250365]
[1739372118008,0.00034926,95596.0,95589.0,0.15692]
[1739372118208,0.00034926,95596.0,95595.0,0.004]
[1739372118423,0.00034926,95596.0,95579.0,0.20925]
[1739372118629,0.00034926,95596.0,95580.0,0.10250365]
[1739372119048,0.00034926,95596.0,95581.0,0.156934]
[1739372119264,0.156923,95588.0,95582.0,0.10250365]
[1739372119481,0.0758,95595.0,95577.0,0.156941]
[1739372119684,0.20922,95593.0,95572.0,0.156949]
[1739372119884,0.156938,95579.0,95573.0,0.10250365]
[1739372120082,0.0758,95595.0,95573.0,0.10250365]
[1739372120083,0.15694,95578.0,95573.0,0.10250365]
[1739372120303,0.209224,95591.0,95573.0,0.10250365]
[1739372120511,0.156939,95578.0,95573.0,0.10250365]
[1739372120722,0.08708485,95595.0,95539.0,0.0808]
[1739372120723,0.045,95590.0,95539.0,0.0808]
[1739372120932,0.045,95590.0,95580.0,0.004]
[1739372120933,0.29987018,95590.0,95580.0,0.004]
[1739372121143,0.156934,95581.0,95580.0,0.004]
[1739372121535,0.156934,95581.0,95560.0,0.20929]
[1739372121536,0.209229,95589.0,95553.0,0.15]
[1739372121744,0.209229,95589.0,95575.0,0.156943]
[1739372121958,0.209239,95585.0,95573.0,0.007]
[1739372122169,0.29987018,95590.0,95572.0,0.011]
[1739372122376,0.25487018,95590.0,95580.0,0.004]
[1739372122584,0.25487018,95590.0,95581.0,0.10250365]
[1739372123008,0.25487018,95590.0,95581.0,0.25943765]
[1739372123226,0.25487018,95590.0,95569.0,0.156953]
[1739372123443,0.25487018,95590.0,95570.0,0.10250365]
[1739372123663,0.25487018,95590.0,95587.0,0.156924]
[1739372123882,0.25487018,95590.0,95588.0,0.156923]
[1739372124086,0.25487018,95590.0,95585.0,0.209237]
[1739372124300,0.25487018,95590.0,95581.0,0.10250365]
[1739372124515,0.156934,95581.0,95580.0,0.011]
[1739372124729,0.209229,95589.0,95572.0,0.209264]
[1739372124939,0.209231,95588.0,95573.0,0.10250365]
[1739372125144,0.156935,95581.0,95575.0,0.004]
[1739372125372,0.209233,95587.0,95573.0,0.10250365]
[1739372125553,0.156939,95578.0,95573.0,0.10250365]
[1739372125977,0.26605333,95590.0,95566.0,0.156958]
[1739372126197,0.156945,95575.0,95567.0,0.25946065]
[1739372126449,0.209231,95588.0,95567.0,0.10250365]
[1739372126646,0.209258,95576.0,95567.0,0.10250365]
[1739372126935,0.156943,95576.0,95573.0,0.003]
[1739372127180,0.209235,95586.0,95573.0,0.003]
[1739372127386,0.156946,95574.0,95573.0,0.003]
[1739372127600,0.156942,95577.0,95573.0,0.003]
[1739372127824,0.156945,95575.0,95573.0,0.003]
[1739372128033,0.156946,95574.0,95573.0,0.003]
[1739372128248,0.0755,95580.0,95539.0,0.1823087]
[1739372128498,0.047,95577.0,95545.0,0.10250365]
[1739372128708,0.156964,95564.0,95556.0,0.156975]
[1739372129002,0.047,95577.0,95545.0,0.10250365]
[1739372129003,0.25487018,95576.0,95547.0,0.209321]
[1739372129236,0.156956,95568.0,95567.0,0.003]
[1739372129448,0.25487018,95576.0,95571.0,0.15695]
[1739372129649,0.25487018,95576.0,95568.0,0.10250365]
[1739372129865,0.25487018,95576.0,95575.0,0.156944]
[1739372130075,0.25487018,95576.0,95573.0,0.156946]
[1739372130318,0.25487018,95576.0,95574.0,0.156945]
[1739372131167,0.25487018,95576.0,95573.0,0.10250365]
[1739372131829,0.25487018,95576.0,95568.0,0.005]
[1739372131830,0.156947,95574.0,95568.0,0.005]
[1739372132089,0.209259,95575.0,95568.0,0.10750365]
[1739372132316,0.25487018,95576.0,95567.0,0.0001065]
[1739372132562,0.156951,95571.0,95567.0,0.0001065]
[1739372132796,0.156944,95575.0,95574.0,0.008]
[1739372133215,0.156944,95575.0,95574.0,0.002]
[1739372133638,0.156944,95575.0,95567.0,0.0001065]
[1739372133639,0.209257,95576.0,95567.0,0.0061065]
[1739372133885,0.00022366,95586.0,95568.0,0.10250365]
[1739372134140,0.00022366,95586.0,95568.0,0.156954]
[1739372134141,0.156943,95576.0,95568.0,0.156954]
[1739372134372,0.00022366,95586.0,95574.0,0.003]
[1739372134611,0.156935,95581.0,95574.0,0.159946]
[1739372134827,0.209237,95585.0,95574.0,0.003]
[1739372135029,0.156944,95575.0,95574.0,0.003]
[1739372135458,0.209252,95579.0,95574.0,0.003]
[1739372135653,0.156944,95575.0,95574.0,0.003]
[1739372136272,0.156944,95575.0,95574.0,0.004]
[1739372136496,0.156944,95575.0,95574.0,0.001]
[1739372138144,0.156944,95575.0,95574.0,0.003]
[1739372138373,0.156944,95575.0,95574.0,0.004]
[1739372138827,0.00022366,95586.0,95585.0,0.156928]
[1739372139041,0.00022366,95586.0,95585.0,0.25943165]
[1739372140377,0.00022366,95586.0,95585.0,0.27049023]
[1739372141011,0.00022366,95586.0,95585.0,0.28549023]
[1739372141446,0.00022366,95586.0,95585.0,0.28949023]
[1739372141656,0.00022366,95586.0,95585.0,0.42049023]
[1739372142089,0.00022366,95586.0,95585.0,0.50979023]
[1739372142967,0.00022366,95586.0,95585.0,0.52479023]
[1739372143236,0.00022366,95586.0,95585.0,0.51779023]
[1739372143482,0.00022366,95586.0,95585.0,0.50279023]
[1739372143896,0.00022366,95586.0,95585.0,0.51779023]
[1739372144744,0.00022366,95586.0,95585.0,0.52479023]
[1739372146438,0.00022366,95586.0,95585.0,0.50279023]
[1739372146645,0.00022366,95586.0,95585.0,0.51779023]
[1739372147336,0.00022366,95586.0,95585.0,0.50279023]
[1739372147536,0.00022366,95586.0,95585.0,0.51779023]
[1739372147836,0.00022366,95586.0,95585.0,0.50979023]
[1739372148039,0.00022366,95586.0,95585.0,0.50279023]
[1739372148443,0.00022366,95586.0,95585.0,0.50979023]
[1739372150996,0.00022366,95586.0,95585.0,0.52479023]
[1739372157594,0.00022366,95586.0,95585.0,0.44249023]
[1739372159361,0.00022366,95586.0,95585.0,0.43549023]
[1739372159828,0.00022366,95586.0,95585.0,0.44249023]
[1739372160075,0.00022366,95586.0,95585.0,0.43549023]
[1739372160305,0.00022366,95586.0,95585.0,0.42049023]
[1739372160509,0.00022366,95586.0,95585.0,0.43549023]
[1739372160951,0.00022366,95586.0,95585.0,0.42749023]
[1739372161095,0.00022366,95596.0,95595.0,0.306911]
[1739372161303,0.00034926,95596.0,95595.0,0.40941465]
[1739372161707,4.5e-07,95608.0,95607.0,0.306892]
[1739372161896,3.2e-07,95611.0,95610.0,0.306887]
[1739372162093,3.2e-07,95611.0,95610.0,0.51419065]
[1739372162425,0.00020911,95641.0,95620.0,0.30687]
[1739372162803,0.00022345,95650.0,95620.0,0.44237365]
[1739372163003,0.09385579,95649.0,95620.0,0.44237365]
[1739372163115,0.09385579,95649.0,95620.0,0.40937365]
[1739372163900,0.09385579,95649.0,95620.0,0.41637365]
[1739372164153,0.25067979,95649.0,95620.0,0.41637365]
[1739372164389,0.09385579,95649.0,95620.0,0.42779175]
[1739372164828,0.156836,95642.0,95620.0,0.42779175]
[1739372165037,0.09385579,95649.0,95620.0,0.42779175]
[1739372165038,0.156845,95636.0,95620.0,0.42779175]
[1739372165266,0.0816,95633.0,95620.0,0.42779175]
[1739372165457,0.0816,95633.0,95620.0,0.44279175]
[1739372166087,0.0816,95633.0,95620.0,0.43579175]
[1739372166297,0.048,95628.0,95620.0,0.022]
[1739372166710,0.048,95628.0,95620.0,0.11750365]
[1739372166941,0.048,95628.0,95620.0,0.10950365]
[1739372167157,0.1291,95641.0,95620.0,0.11750365]
[1739372167565,0.1291,95641.0,95620.0,0.12450365]
[1739372167780,0.0483,95641.0,95620.0,0.11750365]
[1739372168192,0.0483,95641.0,95620.0,0.10250365]
[1739372168402,9.1e-07,95645.0,95620.0,0.25354919]
[1739372168610,9.1e-07,95645.0,95620.0,0.26750365]
[1739372169853,9.1e-07,95645.0,95620.0,0.43137365]
[1739372170059,9.1e-07,95645.0,95620.0,0.41637365]
[1739372170269,9.1e-07,95645.0,95620.0,0.45645146]
[1739372170726,9.1e-07,95645.0,95620.0,0.44845146]
[1739372170897,9.1e-07,95645.0,95620.0,0.42719602]
[1739372171105,9.1e-07,95645.0,95620.0,0.44219602]
[1739372171316,0.156839,95640.0,95620.0,0.44219602]
[1739372171530,9.1e-07,95645.0,95620.0,0.43519602]
[1739372171948,9.1e-07,95645.0,95620.0,0.42019602]
[1739372172163,0.15683191,95645.0,95620.0,0.42019602]
[1739372172377,9.1e-07,95645.0,95620.0,0.42019602]
[1739372172581,0.15683091,95645.0,95620.0,0.42019602]
[1739372172789,9.1e-07,95645.0,95620.0,0.42019602]
[1739372173005,9.1e-07,95645.0,95620.0,0.42719602]
[1739372173210,9.1e-07,95645.0,95620.0,0.42019602]
[1739372173414,9.1e-07,95645.0,95620.0,0.43519602]
[1739372173635,9.1e-07,95645.0,95620.0,0.44219602]
[1739372173836,9.1e-07,95645.0,95620.0,0.42719602]
[1739372174268,9.1e-07,95645.0,95620.0,0.44219602]
[1739372174591,9.1e-07,95645.0,95620.0,0.43519602]
[1739372174735,9.1e-07,95645.0,95620.0,0.44219602]
[1739372175544,0.156832,95644.0,95620.0,0.44219602]
[1739372175793,0.156831,95644.0,95620.0,0.44219602]
[1739372175998,9.1e-07,95645.0,95620.0,0.44219602]
[1739372176195,9.1e-07,95645.0,95620.0,0.43519602]
[1739372176371,9.1e-07,95645.0,95620.0,0.42719602]
[1739372176752,9.1e-07,95645.0,95620.0,0.42019602]
[1739372176948,9.1e-07,95645.0,95620.0,0.42719602]
[1739372177147,9.1e-07,95645.0,95620.0,0.44219602]
[1739372177551,0.0802,95635.0,95620.0,0.42719602]
[1739372177965,0.0802,95635.0,95620.0,0.43519602]
[1739372178381,0.0801,95642.0,95620.0,0.43519602]
[1739372178585,9.1e-07,95645.0,95620.0,0.43519602]
[1739372179406,9.1e-07,95645.0,95620.0,0.42719602]
[1739372179617,9.1e-07,95645.0,95620.0,0.44219602]
[1739372179819,9.1e-07,95645.0,95621.0,0.15]
[1739372180022,0.00066787,95629.0,95628.0,0.25936065]
[1739372180242,0.00066787,95629.0,95628.0,0.40936065]
[1739372180455,0.00066787,95629.0,95628.0,0.49146065]
[1739372181271,0.00066787,95629.0,95628.0,0.50646065]
[1739372181507,0.00066787,95629.0,95628.0,0.64147006]
[1739372182710,0.00066787,95629.0,95628.0,0.55937006]
[1739372182929,0.00066787,95629.0,95628.0,0.54437006]
[1739372183372,0.00066787,95629.0,95628.0,0.56637006]
[1739372183581,0.00066787,95629.0,95628.0,0.55937006]
[1739372183781,0.00066787,95629.0,95628.0,0.54437006]
[1739372183988,0.00066787,95629.0,95628.0,0.55137006]
[1739372184201,0.00066787,95629.0,95628.0,0.55937006]
[1739372184621,0.00066787,95629.0,95628.0,0.56637006]
[1739372184827,0.00066787,95629.0,95628.0,0.55937006]
[1739372185436,0.00066787,95629.0,95628.0,0.56737006]
[1739372185648,0.00066787,95629.0,95628.0,0.57737006]
[1739372185857,8.7e-07,95629.0,95628.0,0.59237006]
[1739372186065,8.7e-07,95629.0,95628.0,0.45736065]
[1739372186265,8.7e-07,95629.0,95628.0,0.46436065]
[1739372186468,8.7e-07,95629.0,95628.0,0.57737006]
[1739372186716,0.08419144,95654.0,95633.0,0.01]
[1739372186929,0.08432467,95654.0,95653.0,0.156816]
[1739372187158,0.00013323,95654.0,95653.0,0.25931965]
[1739372187301,0.00013323,95654.0,95653.0,0.40931965]
[1739372188705,4.096e-05,95654.0,95653.0,0.40931965]
[1739372189358,4.096e-05,95654.0,95653.0,0.56977744]
[1739372189829,4.096e-05,95654.0,95653.0,0.55477641]
[1739372190038,4.096e-05,95654.0,95653.0,0.56977641]
[1739372190439,4.096e-05,95654.0,95653.0,0.55477641]
[1739372190769,0.00014746,95654.0,95653.0,0.56977641]
[1739372191188,0.00014746,95654.0,95653.0,0.57677641]
[1739372191390,0.00014746,95654.0,95653.0,0.56977641]
[1739372191786,0.00014746,95654.0,95653.0,0.57677641]
[1739372192376,4.6e-07,95654.0,95653.0,0.60977641]
[1739372192574,0.0143797,95671.0,95670.0,0.306788]
[1739372192782,0.0143797,95671.0,95670.0,0.40929165]
[1739372193615,7e-07,95671.0,95670.0,0.44229165]
[1739372193976,0.08297,95703.0,95670.0,0.38544674]
[1739372193977,7e-05,95703.0,95670.0,0.38544674]
[1739372194190,0.00020321,95703.0,95702.0,0.306736]
[1739372194373,0.00020321,95703.0,95702.0,0.40923965]
[1739372194816,0.00020321,95703.0,95702.0,0.4200843]
[1739372195554,0.208905,95737.0,95702.0,0.2633483]
[1739372195749,0.156683,95735.0,95724.0,0.1567]
[1739372195975,0.156684,95734.0,95725.0,0.10250365]
[1739372196186,0.08469376,95739.0,95700.0,0.60173433]
[1739372196187,0.156701,95724.0,95701.0,0.156738]
[1739372196389,0.208903,95738.0,95702.0,0.10250365]
[1739372196585,0.00044377,95739.0,95702.0,0.10250365]
[1739372196586,0.20891,95735.0,95702.0,0.10250365]
[1739372196957,0.173,95736.0,95702.0,0.10250365]
[1739372196958,0.156719,95713.0,95702.0,0.26623865]
[1739372197191,0.20894,95721.0,95702.0,0.10250365]
[1739372197396,0.208942,95720.0,95702.0,0.10250365]
[1739372197573,0.02112587,95727.0,95706.0,0.208971]
[1739372197574,0.156711,95718.0,95706.0,0.208971]
[1739372197777,0.208939,95722.0,95707.0,0.10250365]
[1739372197992,0.15673,95706.0,95697.0,0.1677587]
[1739372198322,0.02112587,95727.0,95696.0,0.09993816]
[1739372198323,0.208966,95709.0,95696.0,0.09993816]
[1739372198527,0.25487018,95717.0,95696.0,0.09993816]
[1739372198528,0.25487018,95717.0,95701.0,0.007]
[1739372198755,0.37767018,95717.0,95711.0,0.156721]
[1739372198965,0.37767018,95717.0,95701.0,0.007]
[1739372198966,0.231685,95733.0,95712.0,0.10250365]
[1739372199171,0.075,95733.0,95731.0,0.156688]
[1739372199375,0.0478,95734.0,95733.0,0.156685]
[1739372199583,0.0478,95734.0,95713.0,0.15]
[1739372199786,0.0478,95734.0,95731.0,0.156689]
[1739372199990,0.0478,95734.0,95732.0,0.156687]
[1739372200194,0.0478,95734.0,95733.0,0.156685]
[1739372200735,0.0478,95734.0,95730.0,0.156689]
[1739372200959,0.0478,95734.0,95731.0,0.003]
[1739372201160,0.0478,95734.0,95725.0,0.20893]
[1739372201407,0.0478,95734.0,95729.0,0.156692]
[1739372201609,0.0478,95734.0,95733.0,0.003]
[1739372203085,0.0478,95734.0,95729.0,0.008]
[1739372203294,0.0478,95734.0,95733.0,0.156685]
[1739372203498,0.0478,95734.0,95733.0,0.008]
[1739372203919,0.0478,95734.0,95733.0,0.011]
[1739372204686,0.0478,95734.0,95729.0,0.208921]
[1739372204892,0.0478,95734.0,95729.0,0.10250365]
[1739372205098,0.0478,95734.0,95729.0,0.10950365]
[1739372205512,0.204485,95734.0,95718.0,0.22024421]
[1739372205728,0.156689,95731.0,95729.0,0.007]
[1739372205929,0.156687,95732.0,95729.0,0.007]
[1739372206151,0.156687,95732.0,95722.0,0.156703]
[1739372206429,0.0478,95734.0,95723.0,0.156702]
[1739372206693,0.208914,95733.0,95729.0,0.007]
[1739372207007,0.0478,95734.0,95729.0,0.007]
[1739372207149,0.25487018,95745.0,95730.0,0.10250365]
[1739372207960,0.25487018,95745.0,95735.0,0.15668]
[1739372208393,0.25487018,95745.0,95723.0,0.002]
[1739372208640,0.25487018,95745.0,95724.0,0.10250365]
[1739372208844,0.25487018,95745.0,95744.0,0.156667]
[1739372209016,0.25487018,95745.0,95744.0,0.25917065]
[1739372209261,0.25487018,95745.0,95737.0,0.156679]
[1739372209663,0.0752,95743.0,95723.0,0.005]
[1739372209812,0.156676,95739.0,95726.0,0.208929]
[1739372210003,0.0452,95742.0,95731.0,0.156688]
[1739372210201,0.0452,95742.0,95729.0,0.004]
[1739372210406,0.156685,95734.0,95723.0,0.005]
[1739372210612,0.208899,95740.0,95737.0,0.004]
[1739372210806,0.156677,95738.0,95737.0,0.004]
[1739372211015,0.023,95737.0,95696.0,0.0767]
[1739372211281,0.023,95737.0,95731.0,0.001]
[1739372211282,0.156687,95732.0,95731.0,0.001]
[1739372211483,0.156687,95732.0,95703.0,0.01108762]
[1739372211484,0.25750365,95732.0,95703.0,0.01108762]
[1739372211686,0.156715,95715.0,95706.0,0.156729]
[1739372211866,0.023,95730.0,95698.0,0.208988]
[1739372212017,0.02121165,95726.0,95700.0,0.208984]
[1739372212222,0.208963,95711.0,95698.0,0.156743]
[1739372212430,0.156731,95705.0,95697.0,0.156744]
[1739372212634,0.156731,95705.0,95697.0,0.25924765]
[1739372212835,0.0805,95710.0,95697.0,0.10250365]
[1739372213073,0.156734,95703.0,95697.0,0.10250365]
[1739372213259,0.208966,95709.0,95697.0,0.10250365]
[1739372213465,0.156746,95696.0,95695.0,0.0999392]
[1739372213670,0.156743,95698.0,95697.0,0.005]
[1739372213868,0.208986,95700.0,95695.0,0.0999392]
[1739372214072,0.156746,95696.0,95695.0,0.0999392]
[1739372214494,0.208991,95698.0,95695.0,0.0999392]
[1739372214709,0.156745,95697.0,95695.0,0.0999392]
[1739372215233,0.0491,95706.0,95695.0,0.0999392]
[1739372215400,0.0491,95706.0,95697.0,0.009]
[1739372215567,0.156741,95699.0,95697.0,0.009]
[1739372215768,0.0491,95706.0,95700.0,0.156738]
[1739372216178,0.0491,95706.0,95697.0,0.00022344]
[1739372216608,0.258073,95706.0,95697.0,0.00022344]
[1739372217430,0.0491,95706.0,95697.0,0.00022344]
[1739372217628,0.156743,95698.0,95697.0,0.00022344]
[1739372218058,0.156743,95698.0,95697.0,0.00222344]
[1739372218658,0.156743,95698.0,95697.0,0.00822344]
[1739372219221,0.156743,95698.0,95697.0,0.00222344]
[1739372219444,0.156743,95698.0,95697.0,0.01422344]
[1739372219851,0.156743,95698.0,95697.0,0.01222344]
[1739372220070,0.21533472,95698.0,95697.0,0.01222344]
[1739372220271,0.21533472,95698.0,95697.0,0.01622344]
[1739372220647,0.21533472,95698.0,95697.0,0.00422344]
[1739372221038,0.21533472,95698.0,95697.0,0.01222344]
[1739372221510,0.156743,95698.0,95697.0,0.00422344]
[1739372221720,0.25487018,95699.0,95697.0,0.01622344]
[1739372221915,0.156743,95698.0,95697.0,0.01622344]
[1739372222350,0.156743,95698.0,95697.0,0.00422344]
[1739372222562,0.01,95732.0,95697.0,0.00922344]
[1739372222762,0.208961,95712.0,95703.0,0.156734]
[1739372222969,0.208951,95716.0,95697.0,0.00922344]
[1739372222970,0.01114436,95716.0,95697.0,0.00922344]
[1739372223192,0.01114436,95716.0,95698.0,0.156741]
[1739372223193,0.15,95715.0,95698.0,0.156741]
[1739372223377,0.15,95715.0,95697.0,0.00722344]
[1739372223579,0.156722,95711.0,95701.0,0.156737]
[1739372223709,0.15,95715.0,95697.0,0.00522344]
[1739372223935,0.156743,95698.0,95697.0,0.00522344]
[1739372224161,0.156743,95698.0,95697.0,0.00022344]
[1739372224381,0.09309361,95713.0,95697.0,0.00022344]
[1739372224382,0.156733,95705.0,95697.0,0.00022344]
[1739372224602,0.156728,95708.0,95697.0,0.15696644]
[1739372224821,0.358948,95718.0,95698.0,0.155742]
[1739372225064,0.15,95717.0,95698.0,0.156743]
[1739372225290,0.156726,95708.0,95698.0,0.156743]